fUST/lending_fUST_20260303
["ID","MTS","AMOUNT","RATE_DAILY","PERIOD"]
[407481274,1772509838087,-200.0,0.00011358,2]
[407481276,1772509838097,-1219.65154171,0.00011358,2]
[407481278,1772509838107,-153.59105036,0.00011858,2]
[407481280,1772509838116,-2230.315306,0.00011874,2]
[407481282,1772509838126,-656.238984,0.00011939,2]
[407481284,1772509838137,-500.0,0.0001194,2]
[407481286,1772509838146,-2382.34,0.00012,2]
[407481288,1772509838156,-3000.0,0.00012,2]
[407481290,1772509838166,-420.0,0.00012087,2]
[407481292,1772509838175,-666.509987,0.00012211,2]
[407481294,1772509838185,-616.5266346,0.0001225,2]
[407481297,1772509838195,-151.0,0.00012413,2]
[407481300,1772509838204,-237.82297091,0.00012419,2]
[407481303,1772509838213,-234723.18890347,0.0001242,2]
[407481306,1772509838222,-2312.83697232,0.00012422,2]
[407481308,1772509838231,-432.0,0.00012431,2]
[407481310,1772509838240,-2290.9857632,0.00012473,2]
[407481312,1772509838249,-210.416621,0.00012479,2]
[407481314,1772509838259,-180.2377827,0.00012484,2]
[407481316,1772509838268,-151.431857,0.00012492,2]
[407481318,1772509838278,-262.76898024,0.00012493,2]
[407481320,1772509838288,-232.11148789,0.00012493,2]
[407481322,1772509838298,-132687.07693651,0.000125,2]
[407481381,1772509840504,-311.3436706,0.000125,2]
[407481904,1772509846215,-23204.8203807,0.000125,2]
[407483183,1772510074734,1434.676,0.0001001,2]
[407483186,1772510558168,1043.87763218,0.0001,2]
[407483187,1772510616936,5000.0,0.0001001,2]
[407483188,1772510624955,4762.67118144,0.0001001,2]
[407483189,1772510833119,5000.0,0.0001001,2]
[407483190,1772510945124,-2697.38481226,0.00010116,2]
[407483192,1772510957687,3420.47,0.0001,2]
[407483214,1772511031961,-2302.61518774,0.00010116,2]
[407483216,1772511031971,-562.0,0.00010116,2]
[407483218,1772511031981,-207.32710375,0.00010167,2]
[407483220,1772511031990,-502.44171132,0.000103,2]
[407483222,1772511031999,-300.0,0.00010685,2]
[407483224,1772511032009,-1200.0,0.00010799,2]
[407483226,1772511032018,-588.26139478,0.000108,2]
[407483228,1772511032027,-500.0,0.00010842,2]
[407483230,1772511032036,-300.0,0.000109,2]
[407483232,1772511032045,-300.0,0.000109,2]
[407483233,1772511032054,-300.0,0.000109,2]
[407483235,1772511032065,-300.0,0.000109,2]
[407483237,1772511032075,-300.0,0.00010901,2]
[407483240,1772511032084,-300.0,0.00010901,2]
[407483242,1772511032094,-300.0,0.00010901,2]
[407483243,1772511032103,-300.0,0.00010901,2]
[407483245,1772511032113,-300.0,0.00010901,2]
[407483247,1772511032122,-300.0,0.00010901,2]
[407483249,1772511032131,-300.0,0.00010901,2]
[407483251,1772511032140,-300.0,0.00010901,2]
[407483253,1772511032150,-300.0,0.00010901,2]
[407483255,1772511032159,-300.0,0.00010901,2]
[407483257,1772511032169,-300.0,0.00010901,2]
[407483259,1772511032178,-300.0,0.00010901,2]
[407483261,1772511032187,-300.0,0.00010901,2]
[407483263,1772511032196,-300.0,0.00010901,2]
[407483265,1772511032205,-300.0,0.00010901,2]
[407483267,1772511032215,-500.0,0.00011413,2]
[407483269,1772511032224,-160.0,0.00011612,3]
[407483271,1772511032233,-609.52261523,0.00011874,2]
[407483273,1772511032244,-1620.79269077,0.00011874,2]
[407483275,1772511032253,-500.0,0.00011892,2]
[407483277,1772511032263,-401.09949768,0.00011979,2]
[407483315,1772511034626,1377.09278879,0.0001001,2]
[407483354,1772511038261,-18.90050232,0.00011979,2]
[407483355,1772511038272,-500.0,0.00012014,2]
[407483357,1772511038281,-244.64598243,0.00012167,2]
[407483359,1772511038290,-656.238984,0.0001224,2]
[407483360,1772511038299,-2290.9857632,0.0001225,2]
[407483361,1772511038309,-616.5266346,0.0001225,2]
[407483362,1772511038319,-432.0,0.00012262,2]
[407483363,1772511038328,-508.57,0.00012329,2]
[407483364,1772511038337,-423.81,0.00012329,2]
[407483365,1772511038347,-353.18,0.00012329,2]
[407483367,1772511038358,-294.31,0.00012329,2]
[407483369,1772511038368,-245.26,0.00012329,2]
[407483371,1772511038378,-204.38,0.00012329,2]
[407483372,1772511038387,-170.32,0.00012329,2]
[407483373,1772511038397,-851.63,0.00012329,2]
[407483374,1772511038407,-2312.83697232,0.00012422,2]
[407483375,1772511038417,-180.2377827,0.00012493,2]
[407483376,1772511038428,-336.34948004,0.00012493,2]
[407483377,1772511038437,-265.27027187,0.00012493,2]
[407483378,1772511038447,-384.39940576,0.00012493,2]
[407483379,1772511038457,-211.66868883,0.00012493,2]
[407483380,1772511038466,-414.070315,0.00012493,2]
[407483381,1772511038476,-176.89105462,0.00012493,2]
[407483382,1772511038486,-600.02344743,0.00012493,2]
[407483383,1772511038495,-600.0,0.00012494,2]
[407483384,1772511038504,-694847.48558341,0.000125,2]
[407483385,1772511038517,-137640.66377991,0.000125,2]
[407483473,1772511046339,-8042.66603674,0.000125,2]
[407483474,1772511046489,-6038.13409149,0.000125,2]
[407483475,1772511279876,1387.36,0.0001,10]
[407483476,1772511448910,20177.0,0.0001001,2]
[407483506,1772512232298,-5000.0,0.00011045,2]
[407483508,1772512232308,-577.0,0.00011157,2]
[407483510,1772512232318,-202.51880741,0.00011213,2]
[407483513,1772512232328,-248.30631069,0.00011384,2]
[407483629,1772512238483,-51.69368931,0.00011384,2]
[407483630,1772512238493,-300.0,0.0001141,2]
[407483631,1772512238503,-1200.0,0.0001141,2]
[407483632,1772512238512,-2943.9491794,0.00011411,2]
[407483633,1772512238521,-4921.9955903,0.00011501,2]
[407483634,1772512238530,-729.01396437,0.00011729,2]
[407483635,1772512238540,-1246.96262666,0.00011874,2]
[407483636,1772512238549,-666.509987,0.00012048,2]
[407483637,1772512238558,-411.0177564,0.0001225,2]
[407483638,1772512238568,-10869.19348722,0.00012425,2]
[407483639,1772512238577,-318.08549441,0.00012484,2]
[407483640,1772512238588,-151.0,0.00012493,2]
[407483641,1772512238597,-237.82297091,0.00012499,2]
[407483642,1772512238606,-276059.37506925,0.000125,2]
[407483792,1772512243627,-39.36002214,0.000125,2]
[407483800,1772512246420,-464.87788521,0.000125,2]
[407483801,1772512246532,-2440.95,0.000125,2]
[407483802,1772512709229,638.86495744,0.0001001,2]
[407483803,1772512769670,638.86495744,0.0001001,2]
[407483804,1772512818331,638.86495744,0.0001001,2]
[407483805,1772512831033,638.86495744,0.0001001,2]
[407483806,1772512843856,638.86495744,0.0001001,2]
[407483807,1772512898516,638.86495744,0.0001001,2]
[407483808,1772512909635,638.86495744,0.0001001,2]
[407483809,1772512921444,638.86495744,0.0001001,2]
[407483829,1772513432404,-686.02639916,0.00010771,2]
[407483836,1772513432460,-4313.97360084,0.00010771,2]
[407483838,1772513432470,-571.0,0.00010771,2]
[407483840,1772513432480,-497.77158716,0.0001088,2]
[407483842,1772513432490,-1200.0,0.000111,2]
[407483844,1772513432500,-2905.8278852,0.00011101,2]
[407483846,1772513432510,-198.46843126,0.00011479,2]
[407483848,1772513432520,-7454.01676672,0.00012,2]
[407483850,1772513432532,-15562.88130467,0.00012,2]
[407483908,1772513438693,-8420.07049977,0.00012,2]
[407483910,1772513438703,-300.0,0.00012006,2]
[407483912,1772513438712,-300.0,0.00012006,2]
[407483914,1772513438723,-300.0,0.00012006,2]
[407483916,1772513438732,-500.0,0.00012008,2]
[407483918,1772513438741,-500.0,0.00012008,2]
[407483920,1772513438751,-500.0,0.00012008,2]
[407483922,1772513438760,-500.0,0.00012008,2]
[407483924,1772513438770,-500.0,0.00012008,2]
[407483926,1772513438779,-500.0,0.00012008,2]
[407483928,1772513438788,-500.0,0.00012008,2]
[407483930,1772513438798,-496.85094305,0.00012008,2]
[407483932,1772513438807,-500.0,0.00012008,2]
[407483934,1772513438817,-503.30749044,0.00012008,2]
[407483936,1772513438826,-500.0,0.00012008,2]
[407483938,1772513438836,-500.0,0.00012008,2]
[407483940,1772513438847,-500.0,0.00012008,2]
[407483942,1772513438856,-500.0,0.00012008,2]
[407483944,1772513438865,-500.0,0.00012008,2]
[407483946,1772513438874,-311.23371427,0.00012008,2]
[407483948,1772513438884,-500.0,0.00012008,2]
[407483950,1772513438894,-626.40179366,0.00012008,2]
[407483952,1772513438902,-500.0,0.00012008,2]
[407483954,1772513438912,-500.0,0.00012008,2]
[407483955,1772513438922,-500.0,0.00012008,2]
[407483957,1772513438932,-267.54641932,0.00012008,2]
[407483959,1772513438942,-500.0,0.00012008,2]
[407483962,1772513438952,-308.58787438,0.00012008,2]
[407483964,1772513438961,-500.0,0.00012008,2]
[407483966,1772513438971,-500.0,0.00012008,2]
[407483968,1772513438980,-500.0,0.00012008,2]
[407483970,1772513438990,-425.53715346,0.00012008,2]
[407483972,1772513438999,-500.0,0.00012008,2]
[407483974,1772513439008,-2765.83201868,0.00012009,2]
[407483976,1772513439018,-10000.0,0.0001201,2]
[407483978,1772513439028,-50655.92,0.00012193,6]
[407483980,1772513439037,-1200.0,0.0001221,2]
[407483982,1772513439046,-1246.96262666,0.00012248,2]
[407483983,1772513439055,-411.0177564,0.0001225,2]
[407483985,1772513439065,-5750.68622647,0.0001226,2]
[407483987,1772513439074,-151.0,0.00012493,2]
[407483989,1772513439086,-237.82297091,0.00012499,2]
[407483991,1772513439095,-204428.8788212,0.000125,2]
[407484086,1772513441171,-1019.05201729,0.000125,2]
[407484087,1772513441226,-790.19877105,0.000125,2]
[407484098,1772513447195,-3936.91959595,0.00011888,2]
[407484099,1772513447250,-1063.08040405,0.00011888,2]
[407484100,1772513447261,-907.7458251,0.000125,2]
[407484102,1772513697082,1088.36,0.0001,2]
[407484108,1772514340803,10000.0,0.0001001,2]
[407484109,1772514343112,-1016.14640754,0.00011045,2]
[407484110,1772514343135,-5000.0,0.00011157,2]
[407484111,1772514343154,-500.0,0.00011269,2]
[407484112,1772514343174,-1200.0,0.00011294,2]
[407484113,1772514343193,-2943.9491794,0.00011295,2]
[407484114,1772514343212,-500.0,0.00011863,2]
[407484115,1772514343231,-300.0,0.00011917,2]
[407484116,1772514343251,-300.0,0.00011917,2]
[407484117,1772514343271,-300.0,0.00011918,2]
[407484118,1772514343292,-300.0,0.00011918,2]
[407484119,1772514343312,-197.49906264,0.00011919,2]
[407484120,1772514343332,-589.0,0.00011979,2]
[407484121,1772514343351,-154.0,0.000121,2]
[407484122,1772514343370,-274.0118376,0.0001225,2]
[407484123,1772514343390,-500.0,0.00012456,2]
[407484124,1772514343409,-151.0,0.00012493,2]
[407484125,1772514343430,-3841.96263282,0.00012493,2]
[407484126,1772514348154,10000.0,0.0001001,2]
[407484127,1772514355361,10000.0,0.0001001,2]
[407484128,1772514361844,10000.0,0.0001001,2]
[407484129,1772514374722,1168.3,0.0001001,2]
[407484130,1772514425126,-1016.14640754,0.00011382,2]
[407484131,1772514425146,-4921.9955903,0.00011497,2]
[407484132,1772514425167,-182.6745584,0.0001225,2]
[407484133,1772514425187,-300.0,0.00012367,2]
[407484134,1772514425210,-5000.0,0.00012368,2]
[407484135,1772514425231,-3965.13800525,0.00012493,2]
[407484136,1772514425252,-318.08549441,0.00012493,2]
[407484137,1772514425271,-432.0,0.00012498,2]
[407484138,1772514425291,-177.0,0.00012499,2]
[407484139,1772514425313,-332.98343812,0.00012499,2]
[407484140,1772514425335,-166.47607964,0.00012499,2]
[407484141,1772514425355,-127026.33937034,0.000125,2]
[407484142,1772514443082,-5000.0,0.00012375,2]
[407484143,1772514443103,-201.24819047,0.00012499,2]
[407484144,1772514443126,-347.37797707,0.00012499,2]
[407484145,1772514443146,-64426.90474662,0.000125,2]
[407484169,1772514631603,-182.6745584,0.0001225,2]
[407484170,1772514631613,-117.3254416,0.0001225,2]
[407484171,1772514631659,-475.6745584,0.0001225,2]
[407484172,1772514631670,-762.24812374,0.00012375,2]
[407484238,1772514637738,-4237.75187626,0.00012375,2]
[407484239,1772514637748,-300.0,0.00012499,2]
[407484240,1772514637757,-1200.0,0.00012499,2]
[407484241,1772514637766,-144383.01779306,0.000125,2]
[407484242,1772514637788,-204428.8788212,0.000125,2]
[407484243,1772514637815,-1341.25548051,0.000125,2]
[407484596,1772514642852,-716.00431345,0.000125,2]
[407484973,1772514646653,-5000.0,0.00012375,2]
[407484974,1772514646663,-10982.093216,0.000125,2]
[407484977,1772514646675,-1257.42635663,0.000125,2]
[407484980,1772514646705,-18430.44447016,0.000125,2]
[407484993,1772514646828,-9723.65408754,0.000125,2]
[407484998,1772514646860,-1942.05136498,0.000125,2]
[407493990,1772514847301,150.0,0.000109,30]
[407493991,1772514847580,210.55,0.0001,5]
[407493992,1772514847647,210.55,0.0001,6]
[407493993,1772514847757,271.11,0.0001,9]
[407493995,1772514994277,7790.8214928,0.0001,2]
[407493996,1772515144147,499.367076,9.872e-05,2]
[407493997,1772515202481,173.35,9.5e-05,2]
[407493998,1772515202766,173.35,9.7e-05,2]
[407493999,1772515203114,173.35,9.9e-05,2]
[407494001,1772515240763,5000.0,0.0001001,2]
[407494002,1772515255674,2768.73782397,0.0001001,2]
[407494003,1772515263460,5000.0,0.0001001,2]
[407494004,1772515285331,5000.0,0.0001001,2]
[407494005,1772515307772,5000.0,0.0001001,2]
[407494006,1772515329709,5000.0,0.0001001,2]
[407494007,1772515352090,5000.0,0.0001001,2]
[407494008,1772515359373,79567.77926172,0.0001581,120]
[407494009,1772515374361,5000.0,0.0001001,2]
[407494010,1772515396162,5000.0,0.0001001,2]
[407494011,1772515404376,5000.0,0.0001001,2]
[407494012,1772515419551,5000.0,0.0001001,2]
[407494014,1772515427334,5000.0,0.0001001,2]
[407494015,1772515442258,5000.0,0.0001001,2]
[407494017,1772515450469,5000.0,0.0001001,2]
[407494018,1772515465352,5000.0,0.0001001,2]
[407494019,1772515473699,1212.05675575,0.0001001,2]
[407494020,1772515489147,5000.0,0.0001001,2]
[407494021,1772515511175,5000.0,0.0001001,2]
[407494022,1772515533383,5000.0,0.0001001,2]
[407494023,1772515555745,5000.0,0.0001001,2]
[407494024,1772515577784,5000.0,0.0001001,2]
[407494025,1772515601348,5000.0,0.0001001,2]
[407494026,1772515623342,5000.0,0.0001001,2]
[407494027,1772515630191,-173.35,0.000101,2]
[407494028,1772515630214,-293.6022915,0.00010128,2]
[407494029,1772515630238,-412.63182056,0.00010155,2]
[407494030,1772515630260,-292.33788785,0.00010155,2]
[407494031,1772515630281,-173.35,0.000103,2]
[407494032,1772515630302,-173.35,0.000105,2]
[407494033,1772515630323,-568.0,0.00010576,2]
[407494034,1772515630343,-150.0,0.00010724,2]
[407494035,1772515630362,-211.76859316,0.0001075,2]
[407494036,1772515630382,-150.0,0.00010779,2]
[407494037,1772515630403,-1200.0,0.00010785,2]
[407494038,1772515630423,-300.0,0.00010785,2]
[407494039,1772515630442,-300.0,0.00010785,2]
[407494040,1772515630462,-314.08753951,0.00010786,2]
[407494041,1772515630482,-260.80531757,0.00010786,2]
[407494042,1772515630502,-500.0,0.00010786,2]
[407494043,1772515630523,-500.0,0.00010786,2]
[407494044,1772515630545,-500.0,0.00010786,2]
[407494045,1772515630564,-500.0,0.00010786,2]
[407494046,1772515630585,-500.0,0.00010786,2]
[407494047,1772515630603,-500.0,0.00010786,2]
[407494048,1772515630624,-500.0,0.00010786,2]
[407494049,1772515630645,-500.0,0.00010786,2]
[407494050,1772515630664,-500.0,0.00010786,2]
[407494051,1772515630685,-500.0,0.00010786,2]
[407494052,1772515630706,-500.0,0.00010786,2]
[407494053,1772515630727,-500.0,0.00010786,2]
[407494054,1772515630748,-500.0,0.00010786,2]
[407494055,1772515630768,-500.0,0.00010786,2]
[407494056,1772515630788,-500.0,0.00010786,2]
[407494057,1772515630807,-265.7104512,0.00010786,2]
[407494058,1772515630828,-500.0,0.00010786,2]
[407494059,1772515630847,-500.0,0.00010786,2]
[407494060,1772515630868,-500.0,0.00010786,2]
[407494061,1772515630889,-500.0,0.00010786,2]
[407494062,1772515630912,-500.0,0.00010786,2]
[407494063,1772515630933,-500.0,0.00010786,2]
[407494064,1772515630955,-500.0,0.00010786,2]
[407494065,1772515630976,-500.0,0.00010786,2]
[407494066,1772515631001,-500.0,0.00010786,2]
[407494067,1772515631023,-500.0,0.00010786,2]
[407494068,1772515631045,-488.35091199,0.00010786,2]
[407494069,1772515631067,-500.0,0.00010786,2]
[407494070,1772515631088,-500.0,0.00010786,2]
[407494071,1772515631115,-597.74200582,0.00010786,2]
[407494072,1772515631138,-500.0,0.00010786,2]
[407494073,1772515631160,-500.0,0.00010786,2]
[407494074,1772515631182,-500.0,0.00010786,2]
[407494075,1772515631210,-500.0,0.00010786,2]
[407494076,1772515631233,-500.0,0.00010786,2]
[407494077,1772515631258,-500.0,0.00010786,2]
[407494078,1772515631283,-500.0,0.00010786,2]
[407494079,1772515631303,-500.0,0.00010786,2]
[407494080,1772515631325,-500.0,0.00010786,2]
[407494081,1772515631345,-500.0,0.00010786,2]
[407494082,1772515631369,-500.0,0.00010786,2]
[407494083,1772515631390,-500.0,0.00010786,2]
[407494084,1772515631410,-186.1760004,0.00010786,2]
[407494085,1772515631435,-500.0,0.00010786,2]
[407494086,1772515631459,-507.26975046,0.00010786,2]
[407494087,1772515631484,-500.0,0.00010786,2]
[407494088,1772515631508,-500.0,0.00010786,2]
[407494089,1772515631531,-500.0,0.00010786,2]
[407494090,1772515631551,-500.0,0.00010786,2]
[407494091,1772515631573,-500.0,0.00010786,2]
[407494092,1772515631594,-500.0,0.00010786,2]
[407494093,1772515631615,-500.0,0.00010786,2]
[407494094,1772515631635,-500.0,0.00010786,2]
[407494095,1772515631656,-167.293183,0.00010786,2]
[407494096,1772515631678,-500.0,0.00010786,2]
[407494097,1772515631700,-500.0,0.00010786,2]
[407494098,1772515631722,-500.0,0.00010786,2]
[407494099,1772515631743,-500.0,0.00010786,2]
[407494100,1772515631764,-610.0,0.00010786,2]
[407494101,1772515631787,-500.0,0.00010786,2]
[407494102,1772515631809,-500.0,0.00010786,2]
[407494103,1772515631829,-500.0,0.00010786,2]
[407494104,1772515631850,-500.0,0.00010786,2]
[407494105,1772515631872,-500.0,0.00010786,2]
[407494106,1772515631893,-500.0,0.00010786,2]
[407494107,1772515631918,-500.0,0.00010786,2]
[407494108,1772515631941,-500.0,0.00010786,2]
[407494109,1772515631963,-500.0,0.00010786,2]
[407494110,1772515631991,-500.0,0.00010786,2]
[407494111,1772515632012,-500.0,0.00010786,2]
[407494112,1772515632034,-500.0,0.00010786,2]
[407494113,1772515632055,-500.0,0.00010786,2]
[407494114,1772515632076,-500.0,0.00010786,2]
[407494115,1772515632098,-500.0,0.00010786,2]
[407494116,1772515632120,-500.0,0.00010786,2]
[407494117,1772515632146,-500.0,0.00010786,2]
[407494118,1772515632167,-500.0,0.00010786,2]
[407494119,1772515632189,-500.0,0.00010786,2]
[407494120,1772515632215,-500.0,0.00010786,2]
[407494121,1772515632238,-500.0,0.00010786,2]
[407494122,1772515632259,-500.0,0.00010786,2]
[407494123,1772515632280,-500.0,0.00010786,2]
[407494124,1772515632302,-500.0,0.00010786,2]
[407494125,1772515632326,-500.0,0.00010786,2]
[407494126,1772515632351,-500.0,0.00010786,2]
[407494127,1772515632375,-500.0,0.00010786,2]
[407494128,1772515632398,-500.0,0.00010786,2]
[407494129,1772515632420,-500.0,0.00010786,2]
[407494130,1772515632447,-560.84501039,0.00010786,2]
[407494131,1772515632471,-500.0,0.00010786,2]
[407494132,1772515632494,-500.0,0.00010786,2]
[407494133,1772515632516,-500.0,0.00010786,2]
[407494134,1772515632538,-500.0,0.00010786,2]
[407494135,1772515632559,-500.0,0.00010786,2]
[407494136,1772515632580,-500.0,0.00010786,2]
[407494137,1772515632823,-500.0,0.00010786,2]
[407494138,1772515632845,-500.0,0.00010786,2]
[407494139,1772515632868,-500.0,0.00010786,2]
[407494140,1772515632891,-500.0,0.00010786,2]
[407494141,1772515632917,-500.0,0.00010786,2]
[407494142,1772515632939,-500.0,0.00010786,2]
[407494143,1772515632960,-500.0,0.00010786,2]
[407494144,1772515632981,-500.0,0.00010786,2]
[407494145,1772515633003,-500.0,0.00010786,2]
[407494146,1772515633024,-500.0,0.00010786,2]
[407494147,1772515633045,-500.0,0.00010786,2]
[407494148,1772515633066,-500.0,0.00010786,2]
[407494149,1772515633088,-177.52688953,0.00010786,2]
[407494150,1772515633110,-500.0,0.00010786,2]
[407494151,1772515633133,-500.0,0.00010786,2]
[407494152,1772515633155,-500.0,0.00010786,2]
[407494153,1772515633177,-500.0,0.00010786,2]
[407494154,1772515633199,-500.0,0.00010786,2]
[407494155,1772515633222,-500.0,0.00010786,2]
[407494156,1772515633243,-500.0,0.00010786,2]
[407494157,1772515633265,-500.0,0.00010786,2]
[407494158,1772515633298,-500.0,0.00010786,2]
[407494159,1772515633320,-500.0,0.00010786,2]
[407494160,1772515633341,-500.0,0.00010786,2]
[407494161,1772515633362,-500.0,0.00010786,2]
[407494162,1772515633384,-500.0,0.00010786,2]
[407494163,1772515633405,-500.0,0.00010786,2]
[407494164,1772515633426,-500.0,0.00010786,2]
[407494165,1772515633449,-500.0,0.00010786,2]
[407494166,1772515633471,-515.42775419,0.00010786,2]
[407494167,1772515633491,-500.0,0.00010786,2]
[407494168,1772515633514,-500.0,0.00010786,2]
[407494169,1772515633537,-500.0,0.00010786,2]
[407494170,1772515633558,-500.0,0.00010786,2]
[407494171,1772515633584,-500.0,0.00010786,2]
[407494172,1772515633606,-313.02348975,0.00010786,2]
[407494173,1772515633626,-500.0,0.00010786,2]
[407494174,1772515633648,-500.0,0.00010786,2]
[407494175,1772515633669,-500.0,0.00010786,2]
[407494176,1772515633689,-500.0,0.00010786,2]
[407494177,1772515633711,-500.0,0.00010786,2]
[407494178,1772515633731,-500.0,0.00010786,2]
[407494179,1772515633753,-500.0,0.00010786,2]
[407494180,1772515633774,-500.0,0.00010786,2]
[407494181,1772515633796,-500.0,0.00010786,2]
[407494182,1772515633818,-500.0,0.00010786,2]
[407494183,1772515633839,-500.0,0.00010786,2]
[407494184,1772515633873,-500.0,0.00010786,2]
[407494185,1772515633900,-500.0,0.00010786,2]
[407494186,1772515633928,-500.0,0.00010786,2]
[407494187,1772515633954,-500.0,0.00010786,2]
[407494188,1772515633977,-500.0,0.00010786,2]
[407494189,1772515634003,-500.0,0.00010786,2]
[407494190,1772515634025,-500.0,0.00010786,2]
[407494191,1772515634048,-500.0,0.00010786,2]
[407494192,1772515634071,-500.0,0.00010786,2]
[407494193,1772515634096,-551.92146478,0.00010786,2]
[407494194,1772515634119,-500.0,0.00010786,2]
[407494195,1772515634145,-500.0,0.00010786,2]
[407494196,1772515634168,-500.0,0.00010786,2]
[407494197,1772515634191,-500.0,0.00010786,2]
[407494198,1772515634213,-500.0,0.00010786,2]
[407494199,1772515634237,-500.0,0.00010786,2]
[407494200,1772515634258,-300.0,0.00010786,2]
[407494201,1772515634281,-300.0,0.00010786,2]
[407494202,1772515634302,-300.0,0.00010786,2]
[407494203,1772515634323,-50000.0,0.00010788,2]
[407494204,1772515634343,-500.0,0.00010789,2]
[407494205,1772515634365,-211.76859316,0.000108,2]
[407494206,1772515634386,-500.0,0.000108,2]
[407494207,1772515634409,-500.0,0.000108,2]
[407494208,1772515634435,-782.61664718,0.000108,2]
[407494209,1772515634461,-202.4581761,0.00010834,2]
[407494210,1772515634483,-211.76859316,0.0001085,2]
[407494211,1772515634505,-722.29213308,0.000109,2]
[407494212,1772515634528,-211.76859316,0.000109,2]
[407494213,1772515634550,-83988.34672004,0.00011,2]
[407494362,1772515838483,-5000.0,0.0001057,2]
[407494364,1772515838492,-1200.0,0.00010677,2]
[407494366,1772515838502,-570.0,0.00010678,2]
[407494368,1772515838512,-287.73024567,0.00010789,2]
[407494370,1772515838521,-211.76859316,0.000109,2]
[407494372,1772515838530,-300.0,0.00010901,2]
[407494373,1772515838540,-300.0,0.00010901,2]
[407494375,1772515838549,-300.0,0.00010901,2]
[407494377,1772515838559,-300.0,0.00010901,2]
[407494379,1772515838568,-6006.1809432,0.00010902,2]
[407494381,1772515838578,-500.0,0.00010999,2]
[407494383,1772515838587,-500.0,0.00010999,2]
[407494385,1772515838596,-500.0,0.00010999,2]
[407494387,1772515838605,-43605.65327996,0.00011,2]
[407494388,1772515838615,-151.0,0.00011,2]
[407494390,1772515838624,-151.0,0.00011,2]
[407494392,1772515838634,-151.431857,0.00011,2]
[407494394,1772515838643,-151.0,0.00011,2]
[407494396,1772515838652,-4742.31889784,0.00011048,2]
[407494398,1772515838661,-2949.92823263,0.00011055,2]
[407494400,1772515838671,-151.0,0.000112,2]
[407494402,1772515838680,-300.0,0.00011219,2]
[407494404,1772515838689,-300.0,0.00011219,2]
[407494406,1772515838698,-300.0,0.00011219,2]
[407494408,1772515838708,-300.0,0.00011219,2]
[407494410,1772515838717,-84.36815113,0.00011219,2]
[407494412,1772515838730,-215.63184887,0.00011219,2]
[407494414,1772515838739,-300.0,0.00011219,2]
[407494416,1772515838748,-300.0,0.00011219,2]
[407494418,1772515838758,-300.0,0.00011219,2]
[407494420,1772515838767,-300.0,0.00011219,2]
[407494422,1772515838777,-300.0,0.00011219,2]
[407494424,1772515838786,-300.0,0.00011219,2]
[407494426,1772515838796,-134.36815113,0.00011219,2]
[407494429,1772515838819,-165.63184887,0.00011219,2]
[407494431,1772515838829,-300.0,0.00011219,2]
[407494433,1772515838838,-300.0,0.00011219,2]
[407494435,1772515838848,-300.0,0.00011219,2]
[407494437,1772515838857,-600.0,0.00011219,2]
[407494439,1772515838867,-151.0,0.000114,2]
[407494441,1772515838876,-150.0,0.00011426,2]